[Event "Fagernes GM Swiss 2020"]
[Site "Fagernes"]
[Date "2020.10.06"]
[Round "4.10"]
[White "Royset, Pal"]
[Black "Miezis, Normunds"]
[Result "0-1"]
[ECO "B30"]
[WhiteElo "2150"]
[BlackElo "2485"]
[Annotator "RC"]
[PlyCount "108"]
[EventDate "2020.10.04"]
[EventType "swiss"]
[EventCountry "NOR"]
[SourceTitle "playchess.com"]
[Source "ChessBase"]
[SourceQuality "1"]
[TimeControl "40/6000+30:2400+30"]

1. e4 {[%emt 0:02:24]} c5 {[%emt 0:00:00]} 2. Nc3 {[%emt 0:01:13]} Nc6 {[%emt 0:01:43]} 3. Bb5 {[%emt 0:01:22]} Nd4 {[%emt 0:02:45]} 4. Nf3 {[%emt 0:00:53]} e6 {[%emt 0:02:06]} 5. O-O {[%emt 0:04:28]} a6 {[%emt 0:09:29]} 6. Bd3 {[%emt 0:01:42]} Nxf3+ {[%emt 0:02:24]} 7. Qxf3 {[%emt 0:00:57]} Bd6 {[%emt 0:00:13]} 8. Re1 {[%emt 0:07:27]} Qc7 {[%emt 0:04:02]} 9. g3 {[%emt 0:04:51]} h5 {[%emt 0:02:19]} 10. b3 {[%emt 0:02:10]} Ne7 {[%emt 0:01:13]} 11. Bb2 {[%emt 0:03:37]} f6 {[%emt 0:04:05]} 12. Na4 {[%emt 0:14:24]} Rb8 {[%emt 0:07:48]} 13. c4 {[%emt 0:05:17]} b5 {[%emt 0:08:56]} 14. Nc3 {[%emt 0:03:18]} b4 {[%emt 0:02:07]} 15. Na4 {[%emt 0:03:10]} Bb7 {[%emt 0:03:14]} 16. Qe3 {[%emt 0:03:27]} Ng6 {[%emt 0:06:37]} 17. f4 {[%emt 0:03:49]} Qc6 {[%emt 0:02:41]} 18. Bf1 {[%emt 0:03:31]} e5 {[%emt 0:03:16]} 19. f5 {[%emt 0:04:36]} Ne7 {[%emt 0:01:02]} 20. Qf2 {[%emt 0:01:19]} Kf7 {[%emt 0:01:43]} 21. Bg2 {[%emt 0:01:18]} Rbg8 {[%emt 0:00:51]} 22. Re3 {[%emt 0:04:30]} Bc7 {[%emt 0:01:45]} 23. Rd3 {[%emt 0:04:23]} d6 {[%emt 0:00:11]} 24. Rf1 {[%emt 0:04:40]} Bd8 {[%emt 0:02:17]} 25. a3 {[%emt 0:02:47]} a5 {[%emt 0:00:32]} 26. axb4 {[%emt 0:00:39]} axb4 {[%emt 0:00:10]} 27. Ba1 {[%emt 0:01:35]} Ke8 {[%emt 0:02:43]} 28. Re3 {[%emt 0:02:04]} g6 {[%emt 0:03:00]} 29. fxg6 {[%emt 0:01:06]} Rxg6 {[%emt 0:01:26]} 30. d3 {[%emt 0:01:12]} Bc8 {[%emt 0:00:39]} 31. Rf3 {[%emt 0:00:28]} Ng8 {[%emt 0:01:29]} 32. Rf5 {[%emt 0:00:18]} h4 {[%emt 0:02:29]} 33. Bxe5 {[%emt 0:00:54]} dxe5 {[%emt 0:01:30]} 34. Rxe5+ {[%emt 0:00:14]} Be7 {[%emt 0:09:25]} 35. Rd5 {[%emt 0:02:52]} hxg3 {[%emt 0:01:06]} 36. hxg3 {[%emt 0:00:07]} Bh3 {[%emt 0:04:22]} 37. Qf4 {[%emt 0:01:38]} Qc8 {[%emt 0:04:46]} 38. Rf2 {[%emt 0:05:24]} Bxg2 {[%emt 0:02:54]} 39. Rxg2 {[%emt 0:00:25]} Rgh6 {[%emt 0:00:31]} 40. Nb6 {[%emt 0:04:23]} Rh1+ {[%emt 0:02:41]} 41. Kf2 {[%emt 0:40:08]} Qa6 {[%emt 0:43:32]} 42. Na4 {[%emt 0:01:57]} Qc6 {[%emt 0:02:45]} 43. Qb8+ {[%emt 0:00:00]} Kf7 {[%emt 0:00:00]} 44. Qa7 {[%emt 0:00:00]} Ra1 {[%emt 0:00:00]} 45. Rd7 {[%emt 0:00:00]} Qe6 {[%emt 0:00:00]} 46. Qb7 {[%emt 0:00:00]} Ra2+ {[%emt 0:00:00]} 47. Kf3 {[%emt 0:00:00]} Rxg2 {[%emt 0:00:00]} 48. Kxg2 {[%emt 0:00:00]} Qh3+ {[%emt 0:00:00]} 49. Kf2 {[%emt 0:00:00]} Qh2+ {[%emt 0:00:00]} 50. Kf3 {[%emt 0:00:00]} Qh1+ {[%emt 0:00:00]} 51. Kf4 {[%emt 0:08:33]} Qf1+ 52. Ke3 Rh2 53. Qd5+ Kg7 54. Qxc5 Qf2# 0-1

[Event "Fagernes GM Swiss 2020"]
[Site "Fagernes"]
[Date "2020.10.06"]
[Round "4.18"]
[White "Eliseev, Sergey"]
[Black "Brodtkorb, Lars Johan"]
[Result "1-0"]
[ECO "C18"]
[WhiteElo "2025"]
[BlackElo "2166"]
[Annotator "ChessBase"]
[PlyCount "73"]
[EventDate "2020.10.04"]
[EventType "swiss"]
[EventCountry "NOR"]
[SourceTitle "playchess.com"]
[Source "ChessBase"]
[SourceQuality "1"]
[TimeControl "40/6000+30:2400+30"]

1. e4 {[%emt 0:00:41]} e6 {[%emt 0:20:03]} 2. d4 {[%emt 0:00:19]} d5 {[%emt 0:00:09]} 3. Nc3 {[%emt 0:00:05]} Bb4 {[%emt 0:00:12]} 4. e5 {[%emt 0:00:10]} c5 {[%emt 0:00:11]} 5. a3 {[%emt 0:00:08]} Bxc3+ {[%emt 0:00:12]} 6. bxc3 {[%emt 0:00:09]} Ne7 {[%emt 0:00:17]} 7. Qg4 {[%emt 0:00:10]} Qc7 {[%emt 0:00:38]} 8. Qxg7 {[%emt 0:00:11]} Rg8 {[%emt 0:00:12]} 9. Qxh7 {[%emt 0:00:08]} cxd4 {[%emt 0:00:23]} 10. Ne2 {[%emt 0:00:07]} Nbc6 {[%emt 0:00:58]} 11. f4 {[%emt 0:00:09]} Bd7 {[%emt 0:03:03]} 12. Qd3 {[%emt 0:00:22]} dxc3 {[%emt 0:10:38]} 13. Qxc3 {[%emt 0:00:56]} Nf5 {[%emt 0:04:36]} 14. Rg1 {[%emt 0:00:57]} O-O-O {[%emt 0:17:47]} 15. g4 {[%emt 0:00:37]} Ncd4 {[%emt 0:25:26]} 16. Qxc7+ {[%emt 0:09:48]} Kxc7 {[%emt 0:00:02]} 17. Nxd4 {[%emt 0:00:40]} Nxd4 {[%emt 0:00:02]} 18. Rg2 {[%emt 0:02:09]} Rh8 {[%emt 0:10:40]} 19. Rf2 {[%emt 0:02:01]} Ba4 {[%emt 0:01:52]} 20. Ra2 {[%emt 0:06:45]} Rxh2 {[%emt 0:08:00]} 21. Rxh2 {[%emt 0:08:25]} Nf3+ {[%emt 0:00:01]} 22. Kf2 {[%emt 0:00:24]} Nxh2 {[%emt 0:00:02]} 23. Be2 {[%emt 0:01:26]} a6 {[%emt 0:04:20]} 24. Kg3 {[%emt 0:00:46]} Rh8 {[%emt 0:00:01]} 25. Be3 {[%emt 0:00:42]} Nxg4 {[%emt 0:02:05]} 26. Bxg4 {[%emt 0:08:55]} Rh1 {[%emt 0:00:07]} 27. Bd4 {[%emt 0:02:03]} Rc1 {[%emt 0:00:36]} 28. c3 {[%emt 0:00:25]} a5 {[%emt 0:00:43]} 29. Rh2 {[%emt 0:00:29]} Be8 {[%emt 0:00:31]} 30. Rh7 {[%emt 0:01:24]} Kd7 {[%emt 0:00:35]} 31. Be2 {[%emt 0:00:49]} Rb1 {[%emt 0:00:03]} 32. a4 {[%emt 0:00:15]} Rb2 {[%emt 0:00:32]} 33. Bb5+ {[%emt 0:00:19]} Ke7 {[%emt 0:00:09]} 34. Bc5+ {[%emt 0:00:15]} Kd8 {[%emt 0:00:02]} 35. Rh8 {[%emt 0:00:16]} Rc2 {[%emt 0:00:55]} 36. Bd6 {[%emt 0:00:18]} b6 {[%emt 0:00:11]} 37. Rxe8# {[%emt 0:00:05]} 1-0

[Event "Fagernes GM Swiss 2020"]
[Site "Fagernes"]
[Date "2020.10.06"]
[Round "4.19"]
[White "Nilsen, Tobias Lang"]
[Black "Sorensen, Simen"]
[Result "1/2-1/2"]
[ECO "B48"]
[WhiteElo "2146"]
[BlackElo "2047"]
[Annotator "ChessBase"]
[PlyCount "68"]
[EventDate "2020.10.04"]
[EventType "swiss"]
[EventCountry "NOR"]
[SourceTitle "playchess.com"]
[Source "ChessBase"]
[SourceQuality "1"]
[TimeControl "40/6000+30:2400+30"]

1. e4 {[%emt 0:00:00]} c5 {[%emt 0:00:00]} 2. Nf3 {[%emt 0:00:00]} e6 {[%emt 0:00:25]} 3. d4 {[%emt 0:00:00]} cxd4 {[%emt 0:00:45]} 4. Nxd4 {[%emt 0:00:00]} Nc6 {[%emt 0:00:08]} 5. Nc3 {[%emt 0:00:04]} a6 {[%emt 0:00:21]} 6. Be3 {[%emt 0:03:18]} Qc7 {[%emt 0:00:35]} 7. Qf3 {[%emt 0:00:09]} Nf6 {[%emt 0:00:24]} 8. O-O-O {[%emt 0:00:17]} Nxd4 {[%emt 0:02:25]} 9. Bxd4 {[%emt 0:02:36]} e5 {[%emt 0:00:20]} 10. Be3 {[%emt 0:00:32]} d6 {[%emt 0:01:06]} 11. h3 {[%emt 0:00:58]} Be6 {[%emt 0:01:38]} 12. g4 {[%emt 0:00:33]} Rc8 {[%emt 0:03:03]} 13. g5 {[%emt 0:07:03]} Nd7 {[%emt 0:01:38]} 14. Qg3 {[%emt 0:00:07]} Bxa2 {[%emt 0:03:05]} 15. f4 {[%emt 0:00:21]} exf4 {[%emt 0:11:48]} 16. Bxf4 {[%emt 0:00:07]} Ne5 {[%emt 0:00:38]} 17. Rh2 {[%emt 0:05:20]} Be6 {[%emt 0:04:04]} 18. Nd5 {[%emt 0:02:55]} Bxd5 {[%emt 0:07:50]} 19. exd5 {[%emt 0:02:37]} Be7 {[%emt 0:01:52]} 20. h4 {[%emt 0:04:23]} b5 {[%emt 0:14:02]} 21. Qa3 {[%emt 0:16:02]} Rd8 {[%emt 0:21:09]} 22. h5 {[%emt 0:12:20]} f6 {[%emt 0:07:31]} 23. h6 {[%emt 0:07:54]} g6 {[%emt 0:05:15]} 24. Rf2 {[%emt 0:11:09]} O-O {[%emt 0:01:51]} 25. Bh3 {[%emt 0:00:33]} fxg5 {[%emt 0:02:03]} 26. Be6+ {[%emt 0:00:56]} Kh8 {[%emt 0:01:09]} 27. Bxe5+ {[%emt 0:00:20]} dxe5 {[%emt 0:00:12]} 28. Rxf8+ {[%emt 0:00:06]} Bxf8 {[%emt 0:00:32]} 29. Qxa6 {[%emt 0:00:38]} Qd6 {[%emt 0:05:05]} 30. Qxb5 {[%emt 0:02:13]} Bxh6 {[%emt 0:01:02]} 31. Rh1 {[%emt 0:02:06]} Bg7 {[%emt 0:01:31]} 32. Qd3 {[%emt 0:04:39]} e4 {[%emt 0:00:58]} 33. Qxe4 {[%emt 0:01:14]} Qf4+ {[%emt 0:01:09]} 34. Qxf4 {[%emt 0:00:07]} gxf4 {[%emt 0:00:07]} 1/2-1/2

[Event "Fagernes GM Swiss 2020"]
[Site "Fagernes"]
[Date "2020.10.06"]
[Round "4.20"]
[White "Tenold, Andreas"]
[Black "Flatebo, Hallvard Haug"]
[Result "1-0"]
[ECO "E49"]
[WhiteElo "1935"]
[BlackElo "1877"]
[Annotator "ChessBase"]
[PlyCount "61"]
[EventDate "2020.10.04"]
[EventType "swiss"]
[EventCountry "NOR"]
[SourceTitle "playchess.com"]
[Source "ChessBase"]
[SourceQuality "1"]
[TimeControl "40/6000+30:2400+30"]

1. d4 {[%emt 0:01:24]} e6 {[%emt 0:00:00]} 2. c4 {[%emt 0:00:43]} Nf6 {[%emt 0:00:00]} 3. Nc3 {[%emt 0:00:12]} Bb4 {[%emt 0:00:04]} 4. f3 {[%emt 0:00:12]} d5 {[%emt 0:00:15]} 5. a3 {[%emt 0:00:22]} Bxc3+ {[%emt 0:00:07]} 6. bxc3 {[%emt 0:00:10]} O-O {[%emt 0:00:35]} 7. cxd5 {[%emt 0:00:28]} exd5 {[%emt 0:00:06]} 8. e3 {[%emt 0:00:36]} c5 {[%emt 0:00:59]} 9. Bd3 {[%emt 0:01:20]} Nc6 {[%emt 0:01:43]} 10. Ne2 {[%emt 0:01:15]} cxd4 {[%emt 0:06:14]} 11. cxd4 {[%emt 0:02:09]} Re8 {[%emt 0:04:46]} 12. O-O {[%emt 0:00:31]} Be6 {[%emt 0:07:50]} 13. Ng3 {[%emt 0:08:42]} Qd7 {[%emt 0:04:00]} 14. Bb2 {[%emt 0:08:13]} Rad8 {[%emt 0:05:33]} 15. Qd2 {[%emt 0:06:39]} Qd6 {[%emt 0:05:41]} 16. Rad1 {[%emt 0:02:23]} Bc8 {[%emt 0:06:02]} 17. Qf2 {[%emt 0:05:02]} h5 {[%emt 0:06:13]} 18. Bb1 {[%emt 0:15:57]} Qe7 {[%emt 0:03:30]} 19. e4 {[%emt 0:20:23]} h4 {[%emt 0:04:42]} 20. Ne2 {[%emt 0:00:29]} dxe4 {[%emt 0:04:25]} 21. fxe4 {[%emt 0:01:15]} Nxe4 {[%emt 0:23:02]} 22. Bxe4 {[%emt 0:02:14]} Qxe4 {[%emt 0:00:40]} 23. Qxf7+ {[%emt 0:01:17]} Kh8 {[%emt 0:00:14]} 24. Rf4 {[%emt 0:11:42]} Qh7 {[%emt 0:01:18]} 25. d5 {[%emt 0:04:09]} Ne5 {[%emt 0:01:28]} 26. Qc7 {[%emt 0:02:45]} Qh5 {[%emt 0:04:26]} 27. Bxe5 {[%emt 0:06:07]} Qxe5 {[%emt 0:00:06]} 28. Qf7 {[%emt 0:01:25]} Qg5 {[%emt 0:02:32]} 29. Rdd4 {[%emt 0:00:30]} Bg4 {[%emt 0:03:11]} 30. Rxg4 {[%emt 0:01:18]} Qe3+ {[%emt 0:00:06]} 31. Kh1 {[%emt 0:01:04]} 1-0

[Event "Fagernes GM Swiss 2020"]
[Site "Fagernes"]
[Date "2020.10.06"]
[Round "4.22"]
[White "Bjerke, Richard"]
[Black "Kvendseth, Thyra"]
[Result "1-0"]
[ECO "E60"]
[WhiteElo "2144"]
[BlackElo "2017"]
[Annotator "ChessBase"]
[PlyCount "89"]
[EventDate "2020.10.04"]
[EventType "swiss"]
[EventCountry "NOR"]
[SourceTitle "playchess.com"]
[Source "ChessBase"]
[SourceQuality "1"]
[TimeControl "40/6000+30:2400+30"]

1. Nf3 {[%emt 0:00:00]} Nf6 {[%emt 0:00:00]} 2. c4 {[%emt 0:00:00]} g6 {[%emt 0:00:00]} 3. b3 {[%emt 0:00:12]} Bg7 {[%emt 0:00:09]} 4. Bb2 {[%emt 0:00:08]} c5 {[%emt 0:01:51]} 5. g3 {[%emt 0:00:30]} Nc6 {[%emt 0:00:24]} 6. Bg2 {[%emt 0:00:41]} d6 {[%emt 0:02:32]} 7. d4 {[%emt 0:02:28]} O-O {[%emt 0:02:46]} 8. d5 {[%emt 0:05:29]} Nb8 {[%emt 0:01:44]} 9. O-O {[%emt 0:00:58]} Na6 {[%emt 0:04:41]} 10. Nc3 {[%emt 0:05:00]} Nc7 {[%emt 0:03:03]} 11. Qd2 {[%emt 0:02:14]} a6 {[%emt 0:03:00]} 12. e4 {[%emt 0:05:33]} b5 {[%emt 0:00:58]} 13. e5 {[%emt 0:03:09]} Ng4 {[%emt 0:08:10]} 14. exd6 {[%emt 0:03:33]} exd6 {[%emt 0:00:32]} 15. Ne4 {[%emt 0:00:53]} f6 {[%emt 0:04:10]} 16. h3 {[%emt 0:07:37]} Ne5 {[%emt 0:03:51]} 17. Nxe5 {[%emt 0:01:15]} fxe5 {[%emt 0:00:18]} 18. Rad1 {[%emt 0:03:17]} Ra7 {[%emt 0:02:23]} 19. Qa5 {[%emt 0:03:47]} Rb7 {[%emt 0:05:34]} 20. Bc3 {[%emt 0:07:33]} Rb8 {[%emt 0:13:56]} 21. b4 {[%emt 0:04:28]} bxc4 {[%emt 0:05:23]} 22. bxc5 {[%emt 0:01:07]} dxc5 {[%emt 0:11:46]} 23. Qxc5 {[%emt 0:03:54]} Bd7 {[%emt 0:06:30]} 24. Ba5 {[%emt 0:03:39]} Rc8 {[%emt 0:00:43]} 25. Qxc4 {[%emt 0:16:12]} Nb5 {[%emt 0:05:04]} 26. Qb4 {[%emt 0:00:55]} Qe8 {[%emt 0:01:20]} 27. a4 {[%emt 0:04:12]} Nd4 {[%emt 0:00:49]} 28. Nd6 {[%emt 0:02:00]} Qe7 {[%emt 0:00:39]} 29. Nxc8 {[%emt 0:00:44]} Qxb4 {[%emt 0:00:02]} 30. Bxb4 {[%emt 0:00:03]} Rxc8 {[%emt 0:00:11]} 31. a5 {[%emt 0:02:27]} Bb5 {[%emt 0:04:22]} 32. d6 {[%emt 0:02:38]} Bf8 {[%emt 0:01:47]} 33. Rfe1 {[%emt 0:01:01]} Bg7 {[%emt 0:01:29]} 34. Kh2 {[%emt 0:01:56]} Bd7 {[%emt 0:00:55]} 35. Bd5+ {[%emt 0:01:31]} Kh8 {[%emt 0:00:16]} 36. Rc1 {[%emt 0:02:20]} Rf8 {[%emt 0:02:15]} 37. Kg2 {[%emt 0:01:57]} Nb5 {[%emt 0:02:11]} 38. Bb7 {[%emt 0:02:01]} Bh6 {[%emt 0:01:23]} 39. Rc5 {[%emt 0:03:19]} Rb8 {[%emt 0:01:03]} 40. Bc6 {[%emt 0:02:33]} Nxd6 {[%emt 0:02:02]} 41. Bxd7 {[%emt 0:40:25]} Rxb4 {[%emt 0:40:05]} 42. Rexe5 {[%emt 0:01:36]} Rb7 {[%emt 0:01:12]} 43. Bg4 {[%emt 0:02:28]} Ra7 {[%emt 0:03:15]} 44. Re6 {[%emt 0:01:09]} Bf8 {[%emt 0:00:28]} 45. Rc6 {[%emt 0:00:31]} 1-0

[Event "Fagernes GM Swiss 2020"]
[Site "Fagernes"]
[Date "2020.10.07"]
[Round "5.6"]
[White "Haldorsen, Benjamin"]
[Black "Carlsson, Ludvig"]
[Result "1/2-1/2"]
[ECO "C24"]
[WhiteElo "2469"]
[BlackElo "2281"]
[Annotator "ChessBase"]
[PlyCount "73"]
[EventDate "2020.10.04"]
[EventType "swiss"]
[EventCountry "NOR"]
[SourceTitle "playchess.com"]
[Source "ChessBase"]
[SourceQuality "1"]
[TimeControl "40/6000+30:2400+30"]

1. e4 {[%emt 0:00:16]} e5 {[%emt 0:00:00]} 2. Bc4 {[%emt 0:00:07]} Nf6 {[%emt 0:00:13]} 3. d3 {[%emt 0:00:20]} Bc5 {[%emt 0:02:07]} 4. Nf3 {[%emt 0:00:13]} d6 {[%emt 0:00:57]} 5. c3 {[%emt 0:00:34]} Bb6 {[%emt 0:03:10]} 6. Nbd2 {[%emt 0:00:45]} O-O {[%emt 0:00:33]} 7. h3 {[%emt 0:00:56]} c6 {[%emt 0:02:43]} 8. Bb3 {[%emt 0:03:05]} Nbd7 {[%emt 0:06:39]} 9. O-O {[%emt 0:05:52]} d5 {[%emt 0:02:32]} 10. Re1 {[%emt 0:03:46]} dxe4 {[%emt 0:13:38]} 11. Nxe4 {[%emt 0:15:40]} Nxe4 {[%emt 0:14:50]} 12. dxe4 {[%emt 0:00:12]} h6 {[%emt 0:00:37]} 13. Qd6 {[%emt 0:13:22]} Bc7 {[%emt 0:00:29]} 14. Qg6 {[%emt 0:00:38]} Qf6 {[%emt 0:00:06]} 15. Qg3 {[%emt 0:00:52]} Nc5 {[%emt 0:09:08]} 16. Bc2 {[%emt 0:01:27]} Ne6 {[%emt 0:00:15]} 17. a4 {[%emt 0:09:22]} a5 {[%emt 0:05:12]} 18. Nh2 {[%emt 0:00:28]} Rd8 {[%emt 0:05:32]} 19. Be3 {[%emt 0:12:40]} Nf4 {[%emt 0:01:52]} 20. Bxf4 {[%emt 0:02:27]} exf4 {[%emt 0:04:27]} 21. Qf3 {[%emt 0:00:08]} Be5 {[%emt 0:00:09]} 22. Rad1 {[%emt 0:02:39]} Be6 {[%emt 0:00:18]} 23. Ng4 {[%emt 0:11:33]} Qg5 {[%emt 0:01:30]} 24. Rxd8+ {[%emt 0:01:06]} Rxd8 {[%emt 0:00:10]} 25. Nxe5 {[%emt 0:00:10]} Qxe5 {[%emt 0:00:07]} 26. Rd1 {[%emt 0:00:06]} Rd6 {[%emt 0:00:50]} 27. Qe2 {[%emt 0:02:02]} Rxd1+ {[%emt 0:06:08]} 28. Qxd1 {[%emt 0:00:13]} Qg5 {[%emt 0:00:08]} 29. Kh2 {[%emt 0:03:02]} Qh4 {[%emt 0:00:21]} 30. Kg1 {[%emt 0:02:10]} Qg5 {[%emt 0:00:09]} 31. Kh2 {[%emt 0:01:03]} g6 {[%emt 0:00:10]} 32. Bb3 {[%emt 0:09:15]} f3 {[%emt 0:01:07]} 33. gxf3 {[%emt 0:00:30]} Qf4+ {[%emt 0:00:20]} 34. Kg2 {[%emt 0:00:20]} Qg5+ {[%emt 0:00:07]} 35. Kh2 {[%emt 0:00:04]} Qf4+ {[%emt 0:01:05]} 36. Kg2 {[%emt 0:00:15]} Qg5+ {[%emt 0:00:08]} 37. Kh2 {[%emt 0:00:50]} 1/2-1/2

[Event "Fagernes GM Swiss 2020"]
[Site "Fagernes"]
[Date "2020.10.07"]
[Round "5.7"]
[White "Elsness, Frode"]
[Black "Dolzhikova, Olga"]
[Result "1-0"]
[ECO "B00"]
[WhiteElo "2454"]
[BlackElo "2208"]
[Annotator "ChessBase"]
[PlyCount "71"]
[EventDate "2020.10.04"]
[EventType "swiss"]
[EventCountry "NOR"]
[SourceTitle "playchess.com"]
[Source "ChessBase"]
[SourceQuality "1"]
[TimeControl "40/6000+30:2400+30"]

1. d4 {[%emt 0:02:47]} b6 {[%emt 0:00:26]} 2. e4 {[%emt 0:00:16]} Bb7 {[%emt 0:00:15]} 3. Bd3 {[%emt 0:00:06]} e6 {[%emt 0:00:38]} 4. Nf3 {[%emt 0:01:00]} Nf6 {[%emt 0:01:10]} 5. Qe2 {[%emt 0:02:53]} c5 {[%emt 0:01:23]} 6. c3 {[%emt 0:03:49]} c4 {[%emt 0:13:44]} 7. Bc2 {[%emt 0:05:14]} d5 {[%emt 0:05:30]} 8. e5 {[%emt 0:00:44]} Nfd7 {[%emt 0:01:51]} 9. h4 {[%emt 0:03:54]} Nc6 {[%emt 0:01:48]} 10. h5 {[%emt 0:00:45]} h6 {[%emt 0:01:47]} 11. Nh4 {[%emt 0:02:53]} Qc7 {[%emt 0:07:15]} 12. f4 {[%emt 0:06:58]} O-O-O {[%emt 0:04:02]} 13. Nd2 {[%emt 0:01:18]} Kb8 {[%emt 0:07:18]} 14. Ndf3 {[%emt 0:01:48]} Re8 {[%emt 0:10:33]} 15. O-O {[%emt 0:02:44]} b5 {[%emt 0:01:33]} 16. g4 {[%emt 0:03:34]} Ka8 {[%emt 0:07:49]} 17. Be3 {[%emt 0:11:34]} b4 {[%emt 0:06:16]} 18. f5 {[%emt 0:02:56]} bxc3 {[%emt 0:02:16]} 19. bxc3 {[%emt 0:00:07]} Nd8 {[%emt 0:00:39]} 20. Ng2 {[%emt 0:16:17]} Ba3 {[%emt 0:07:19]} 21. Rab1 {[%emt 0:03:36]} f6 {[%emt 0:01:45]} 22. Bf4 {[%emt 0:06:16]} fxe5 {[%emt 0:07:28]} 23. dxe5 {[%emt 0:00:24]} Nc6 {[%emt 0:01:35]} 24. Nd4 {[%emt 0:06:29]} Bc5 {[%emt 0:01:09]} 25. Rfd1 {[%emt 0:10:30]} Ncxe5 {[%emt 0:05:47]} 26. Kh1 {[%emt 0:01:08]} exf5 {[%emt 0:00:14]} 27. gxf5 {[%emt 0:00:34]} Qa5 {[%emt 0:06:54]} 28. Qd2 {[%emt 0:03:07]} Ng4 {[%emt 0:03:27]} 29. Rb5 {[%emt 0:01:39]} Qa6 {[%emt 0:00:42]} 30. Rdb1 {[%emt 0:01:01]} Bc6 {[%emt 0:00:30]} 31. Nxc6 {[%emt 0:04:57]} Qxc6 {[%emt 0:00:04]} 32. Ba4 {[%emt 0:00:31]} Nf2+ {[%emt 0:02:10]} 33. Kh2 {[%emt 0:00:05]} d4 {[%emt 0:00:39]} 34. Rb8+ {[%emt 0:01:15]} Nxb8 {[%emt 0:00:06]} 35. Rxb8+ {[%emt 0:00:09]} Rxb8 {[%emt 0:00:15]} 36. Bxc6+ {[%emt 0:00:04]} 1-0

[Event "Fagernes GM Swiss 2020"]
[Site "Fagernes"]
[Date "2020.10.07"]
[Round "5.8"]
[White "Vitenberg, Noam Aviv"]
[Black "Kaasen, Tor Fredrik"]
[Result "0-1"]
[ECO "E92"]
[WhiteElo "2298"]
[BlackElo "2386"]
[Annotator "ChessBase"]
[PlyCount "96"]
[EventDate "2020.10.04"]
[EventType "swiss"]
[EventCountry "NOR"]
[SourceTitle "playchess.com"]
[Source "ChessBase"]
[SourceQuality "1"]
[TimeControl "40/6000+30:2400+30"]

1. d4 {[%emt 0:00:00]} Nf6 {[%emt 0:04:32]} 2. c4 {[%emt 0:00:05]} g6 {[%emt 0:00:37]} 3. Nc3 {[%emt 0:00:11]} Bg7 {[%emt 0:00:35]} 4. e4 {[%emt 0:00:18]} d6 {[%emt 0:00:31]} 5. Nf3 {[%emt 0:00:13]} O-O {[%emt 0:00:32]} 6. Be2 {[%emt 0:00:22]} e5 {[%emt 0:00:24]} 7. Be3 {[%emt 0:00:08]} exd4 {[%emt 0:00:29]} 8. Nxd4 {[%emt 0:00:30]} Re8 {[%emt 0:00:12]} 9. f3 {[%emt 0:00:29]} c6 {[%emt 0:00:32]} 10. Bf2 {[%emt 0:00:38]} d5 {[%emt 0:00:24]} 11. exd5 {[%emt 0:00:20]} cxd5 {[%emt 0:00:07]} 12. O-O {[%emt 0:00:20]} Nc6 {[%emt 0:00:16]} 13. c5 {[%emt 0:01:41]} Bd7 {[%emt 0:00:35]} 14. Ndb5 {[%emt 0:11:48]} Re7 {[%emt 0:01:06]} 15. Re1 {[%emt 0:07:53]} a6 {[%emt 0:06:12]} 16. Nd6 {[%emt 0:07:25]} Be6 {[%emt 0:06:08]} 17. Na4 {[%emt 0:19:26]} b5 {[%emt 0:14:32]} 18. Nb6 {[%emt 0:08:17]} Rb8 {[%emt 0:03:39]} 19. Qc2 {[%emt 0:13:24]} Nh5 {[%emt 0:08:18]} 20. Rad1 {[%emt 0:08:50]} Be5 {[%emt 0:10:11]} 21. g3 {[%emt 0:12:23]} Ra7 {[%emt 0:06:19]} 22. f4 {[%emt 0:08:13]} Bxd6 {[%emt 0:03:47]} 23. cxd6 {[%emt 0:00:17]} Rxb6 {[%emt 0:00:21]} 24. Bxh5 {[%emt 0:00:46]} gxh5 {[%emt 0:00:55]} 25. f5 {[%emt 0:00:28]} Bd7 {[%emt 0:00:50]} 26. Bxb6 {[%emt 0:07:17]} Qxb6+ {[%emt 0:00:09]} 27. Kg2 {[%emt 0:00:05]} Ra8 {[%emt 0:06:00]} 28. f6 {[%emt 0:01:31]} Kh8 {[%emt 0:01:22]} 29. Qd2 {[%emt 0:00:19]} h4 {[%emt 0:01:45]} 30. g4 {[%emt 0:00:46]} h3+ {[%emt 0:01:37]} 31. Kxh3 {[%emt 0:00:32]} Rg8 {[%emt 0:00:15]} 32. Rg1 {[%emt 0:00:34]} Ne5 {[%emt 0:00:58]} 33. Rdf1 {[%emt 0:00:29]} Nf3 {[%emt 0:01:08]} 34. Rxf3 {[%emt 0:00:18]} Qxg1 {[%emt 0:00:09]} 35. Rg3 {[%emt 0:00:40]} Qf1+ {[%emt 0:00:11]} 36. Kh4 {[%emt 0:00:14]} Qxf6+ {[%emt 0:00:36]} 37. g5 {[%emt 0:00:07]} Qe5 {[%emt 0:00:16]} 38. Qf2 {[%emt 0:00:46]} Bf5 {[%emt 0:01:21]} 39. Qe3 {[%emt 0:00:54]} Qxe3 {[%emt 0:00:30]} 40. Rxe3 {[%emt 0:00:01]} Rd8 {[%emt 0:00:16]} 41. Re7 {[%emt 0:03:41]} Be6 {[%emt 0:00:17]} 42. Kh5 {[%emt 0:00:25]} Kg7 {[%emt 0:00:06]} 43. h4 {[%emt 0:01:20]} d4 {[%emt 0:00:30]} 44. Rc7 {[%emt 0:00:47]} d3 {[%emt 0:00:12]} 45. Rc1 {[%emt 0:00:07]} d2 {[%emt 0:00:10]} 46. Rd1 {[%emt 0:00:05]} Rxd6 {[%emt 0:00:06]} 47. b3 {[%emt 0:00:21]} Rd4 {[%emt 0:00:05]} 48. Re1 {[%emt 0:00:17]} Bg4# {[%emt 0:00:07]} 0-1